[Event "Fagernes Chess GM-Swiss 2024"]
[Site "Fagernes"]
[Date "2024.03.26"]
[Round "3.46"]
[White "Myagmarsuren, Evsuld"]
[Black "Bech, Havard Eriksen"]
[Result "1-0"]
[ECO "B10"]
[WhiteElo "2138"]
[BlackElo "1951"]
[Annotator "RC"]
[PlyCount "59"]
[EventDate "2024.03.25"]
[EventType "swiss"]
[EventCountry "NOR"]
[SourceTitle "playchess.com"]
[Source "ChessBase"]
[SourceQuality "1"]
[TimeControl "40/6000+30:2400+30"]

1. e4 {[%emt 0:00:29]} c6 {[%emt 0:00:05]} 2. c4 {[%emt 0:00:13]} d5 {[%emt 0:00:06]} 3. exd5 {[%emt 0:00:04]} cxd5 {[%emt 0:00:07]} 4. cxd5 {[%emt 0:00:03]} Nf6 {[%emt 0:00:12]} 5. Nc3 {[%emt 0:00:03]} Nxd5 {[%emt 0:00:10]} 6. Nf3 {[%emt 0:00:07]} Nc6 {[%emt 0:00:06]} 7. Bb5 {[%emt 0:00:03]} g6 {[%emt 0:00:12]} 8. Qa4 {[%emt 0:06:29]} Qd6 {[%emt 0:00:08]} 9. O-O {[%emt 0:05:46]} Bg7 {[%emt 0:02:41]} 10. Re1 {[%emt 0:17:18]} O-O {[%emt 0:11:43]} 11. d4 {[%emt 0:03:04]} Nb6 {[%emt 0:10:38]} 12. Qd1 {[%emt 0:06:08]} Nxd4 {[%emt 0:16:34]} 13. Nxd4 {[%emt 0:01:02]} Bxd4 {[%emt 0:01:34]} 14. Bg5 {[%emt 0:03:44]} Be6 {[%emt 0:03:07]} 15. Ne4 {[%emt 0:02:27]} Qb4 {[%emt 0:02:59]} 16. Bxe7 {[%emt 0:01:11]} Bxf2+ {[%emt 0:01:42]} 17. Kxf2 {[%emt 0:00:05]} Qxe7 {[%emt 0:00:11]} 18. Qd4 {[%emt 0:00:03]} Qh4+ {[%emt 0:03:16]} 19. Kg1 {[%emt 0:00:05]} f5 {[%emt 0:01:24]} 20. g3 {[%emt 0:04:25]} Qd8 {[%emt 0:01:56]} 21. Nd6 {[%emt 0:00:34]} Bd5 {[%emt 0:01:09]} 22. Ne8 {[%emt 0:00:44]} Rf7 {[%emt 0:04:32]} 23. Rad1 {[%emt 0:01:16]} Qg5 {[%emt 0:10:29]} 24. a4 {[%emt 0:03:20]} f4 {[%emt 0:11:01]} 25. Re5 {[%emt 0:01:40]} Qg4 {[%emt 0:02:35]} 26. Nd6 {[%emt 0:08:30]} Rf6 {[%emt 0:15:19]} 27. Rxd5 {[%emt 0:01:35]} Nxd5 {[%emt 0:00:18]} 28. Qxd5+ {[%emt 0:00:05]} Kf8 {[%emt 0:01:49]} 29. Qd4 {[%emt 0:00:55]} Qe6 {[%emt 0:01:44]} 30. Ne4 {[%emt 0:01:06]} 1-0

[Event "Fagernes Chess GM-Swiss 2024"]
[Site "Fagernes"]
[Date "2024.03.26"]
[Round "3.47"]
[White "Valcu, Lavinia"]
[Black "Skramstad, Oda Kofoed"]
[Result "0-1"]
[ECO "A45"]
[WhiteElo "2070"]
[BlackElo "1945"]
[Annotator "NA RC"]
[PlyCount "134"]
[EventDate "2024.03.25"]
[EventType "swiss"]
[EventCountry "NOR"]
[SourceTitle "playchess.com"]
[Source "ChessBase"]
[SourceQuality "1"]
[TimeControl "40/6000+30:2400+30"]

1. d4 {[%emt 0:01:24]} Nf6 {[%emt 0:00:30]} 2. Bf4 {[%emt 0:00:14]} g6 {[%emt 0:01:58]} 3. Nc3 {[%emt 0:00:35]} d5 {[%emt 0:01:49]} 4. e3 {[%emt 0:00:15]} c6 {[%emt 0:01:29]} 5. h4 {[%emt 0:06:39]} Bg7 {[%emt 0:03:35]} 6. Bd3 {[%emt 0:02:22]} Nbd7 {[%emt 0:02:03]} 7. Nf3 {[%emt 0:10:02]} O-O {[%emt 0:03:56]} 8. Ne5 {[%emt 0:12:10]} Nxe5 {[%emt 0:20:02]} 9. Bxe5 {[%emt 0:00:14]} h5 {[%emt 0:01:50]} 10. Ne2 {[%emt 0:02:37]} Qb6 {[%emt 0:07:34]} 11. b3 {[%emt 0:02:05]} c5 {[%emt 0:03:03]} 12. c3 {[%emt 0:06:08]} Bd7 {[%emt 0:04:59]} 13. Nf4 {[%emt 0:03:35]} Rac8 {[%emt 0:03:41]} 14. Qd2 {[%emt 0:21:26]} cxd4 {[%emt 0:08:22]} 15. exd4 {[%emt 0:00:08]} Qc6 {[%emt 0:01:11]} 16. Rc1 {[%emt 0:00:35]} Rfe8 {[%emt 0:05:14]} 17. f3 {[%emt 0:01:39]} Nh7 {[%emt 0:03:47]} 18. Bxg7 {[%emt 0:02:25]} Kxg7 {[%emt 0:02:47]} 19. Kf2 {[%emt 0:00:31]} e5 {[%emt 0:03:02]} 20. dxe5 {[%emt 0:00:21]} Rxe5 {[%emt 0:00:25]} 21. Ne2 {[%emt 0:08:21]} Qb6+ {[%emt 0:02:33]} 22. Nd4 {[%emt 0:02:40]} Nf8 {[%emt 0:02:24]} 23. Kg3 {[%emt 0:02:36]} Qd6 {[%emt 0:03:16]} 24. Kf2 {[%emt 0:00:46]} Qb6 {[%emt 0:01:03]} 25. Qf4 {[%emt 0:04:02]} Ree8 {[%emt 0:01:25]} 26. Kg3 {[%emt 0:01:08]} Qa5 {[%emt 0:01:39]} 27. a4 {[%emt 0:02:35]} Ne6 {[%emt 0:09:20]} 28. Nxe6+ {[%emt 0:00:10]} Bxe6 {[%emt 0:00:14]} 29. Qd4+ {[%emt 0:01:52]} Kh7 {[%emt 0:00:29]} 30. Rc2 {[%emt 0:02:41]} Qc7+ {[%emt 0:00:55]} 31. Kf2 {[%emt 0:00:15]} Qc5 {[%emt 0:01:16]} 32. Qxc5 {[%emt 0:01:13]} Rxc5 {[%emt 0:00:05]} 33. Rhc1 {[%emt 0:03:49]} Kg7 {[%emt 0:01:20]} 34. b4 {[%emt 0:01:31]} Rc7 {[%emt 0:00:35]} 35. Bb5 {[%emt 0:00:59]} Rec8 {[%emt 0:02:04]} 36. Ke3 {[%emt 0:00:32]} Kf6 {[%emt 0:00:53]} 37. Kd4 {[%emt 0:00:24]} Bf5 {[%emt 0:01:00]} 38. Bd3 {[%emt 0:00:06]} Rc4+ {[%emt 0:02:39]} 39. Bxc4 {[%emt 0:02:09]} Rxc4+ {[%emt 0:00:06]} 40. Ke3 {[%emt 0:00:12]} d4+ {[%emt 0:01:03]} 41. Kd2 {[%emt 0:42:49]} Bxc2 {[%emt 0:40:15]} 42. Rxc2 {[%emt 0:00:17]} dxc3+ {[%emt 0:00:11]} 43. Kd3 {[%emt 0:01:26]} Rxb4 {[%emt 0:00:18]} 44. Kxc3 {[%emt 0:01:29]} Rxa4 {[%emt 0:00:29]} 45. Rb2 {[%emt 0:00:32]} b6 {[%emt 0:00:22]} 46. Rd2 {[%emt 0:00:48]} Rxh4 {[%emt 0:01:06]} 47. Rd7 {[%emt 0:00:03]} Ra4 {[%emt 0:00:24]} 48. Kb3 {[%emt 0:00:45]} Ra5 {[%emt 0:00:15]} 49. Rc7 {[%emt 0:00:18]} Rb5+ {[%emt 0:00:32]} 50. Ka4 {[%emt 0:00:10]} Rb2 {[%emt 0:00:20]} 51. g4 {[%emt 0:00:20]} hxg4 {[%emt 0:00:16]} 52. fxg4 {[%emt 0:00:04]} a5 {[%emt 0:00:22]} 53. g5+ {[%emt 0:00:19]} Kxg5 {[%emt 0:00:13]} 54. Rxf7 {[%emt 0:00:04]} Rb4+ {[%emt 0:00:42]} 55. Ka3 {[%emt 0:00:03]} Rf4 {[%emt 0:00:13]} 56. Rb7 {[%emt 0:00:12]} Rf6 {[%emt 0:00:10]} 57. Kb3 {[%emt 0:00:07]} Kg4 {[%emt 0:00:11]} 58. Kc4 {[%emt 0:00:13]} g5 {[%emt 0:00:16]} 59. Kd4 {[%emt 0:00:05]} Kf4 {[%emt 0:00:47]} 60. Kd3 {[%emt 0:00:35]} Kf3 {[%emt 0:00:33]} 61. Kd4 {[%emt 0:00:21]} g4 {[%emt 0:00:36]} 62. Ke5 {[%emt 0:00:06]} Rh6 {[%emt 0:00:27]} 63. Rc7 {[%emt 0:00:16]} g3 {[%emt 0:00:32]} 64. Rc3+ {[%emt 0:00:06]} Kg2 {[%emt 0:00:14]} 65. Kf4 {[%emt 0:00:04]} Rg6 {[%emt 0:00:16]} 66. Rc1 {[%emt 0:00:27]} Kh2 {[%emt 0:00:42]} 67. Kf3 {[%emt 0:00:25]} g2 {[%emt 0:00:32]} 0-1

[Event "Fagernes Chess GM-Swiss 2024"]
[Site "Fagernes"]
[Date "2024.03.26"]
[Round "3.48"]
[White "Holand, Per Fredrik"]
[Black "Lien, Sebastian"]
[Result "1-0"]
[ECO "D05"]
[WhiteElo "2068"]
[BlackElo "1885"]
[Annotator "NA RC"]
[PlyCount "95"]
[EventDate "2024.03.25"]
[EventType "swiss"]
[EventCountry "NOR"]
[SourceTitle "playchess.com"]
[Source "ChessBase"]
[SourceQuality "1"]
[TimeControl "40/6000+30:2400+30"]

1. d4 {[%emt 0:06:53]} d5 {[%emt 0:00:12]} 2. Nf3 {[%emt 0:01:07]} Nf6 {[%emt 0:00:10]} 3. e3 {[%emt 0:00:28]} e6 {[%emt 0:00:11]} 4. Bd3 {[%emt 0:00:06]} Be7 {[%emt 0:00:15]} 5. O-O {[%emt 0:00:12]} O-O {[%emt 0:05:36]} 6. b3 {[%emt 0:01:15]} b6 {[%emt 0:08:34]} 7. Bb2 {[%emt 0:00:06]} Bb7 {[%emt 0:00:48]} 8. Ne5 {[%emt 0:00:36]} c5 {[%emt 0:04:18]} 9. Nd2 {[%emt 0:00:09]} Nc6 {[%emt 0:00:49]} 10. Nxc6 {[%emt 0:06:30]} Bxc6 {[%emt 0:00:38]} 11. Qf3 {[%emt 0:00:06]} c4 {[%emt 0:34:32]} 12. bxc4 {[%emt 0:02:40]} dxc4 {[%emt 0:00:24]} 13. Qxc6 {[%emt 0:00:08]} cxd3 {[%emt 0:00:06]} 14. c4 {[%emt 0:04:09]} Rc8 {[%emt 0:00:13]} 15. Qb5 {[%emt 0:00:10]} Qd6 {[%emt 0:17:19]} 16. Qb3 {[%emt 0:07:59]} Qb4 {[%emt 0:00:48]} 17. Rfd1 {[%emt 0:01:06]} e5 {[%emt 0:08:30]} 18. Bc3 {[%emt 0:05:01]} Qxb3 {[%emt 0:02:11]} 19. axb3 {[%emt 0:00:07]} exd4 {[%emt 0:05:07]} 20. exd4 {[%emt 0:01:27]} a5 {[%emt 0:04:31]} 21. Nf3 {[%emt 0:01:07]} Ne4 {[%emt 0:03:10]} 22. Rxd3 {[%emt 0:01:12]} Nxc3 {[%emt 0:01:07]} 23. Rxc3 {[%emt 0:00:06]} Rfd8 {[%emt 0:00:14]} 24. Kf1 {[%emt 0:02:22]} f6 {[%emt 0:02:21]} 25. Ke2 {[%emt 0:02:04]} Kf7 {[%emt 0:00:35]} 26. Re3 {[%emt 0:00:10]} Bb4 {[%emt 0:00:48]} 27. Kd3 {[%emt 0:00:20]} Rd7 {[%emt 0:05:08]} 28. d5 {[%emt 0:00:31]} b5 {[%emt 0:01:34]} 29. Nd4 {[%emt 0:00:28]} bxc4+ {[%emt 0:02:25]} 30. bxc4 {[%emt 0:00:08]} g6 {[%emt 0:01:24]} 31. Re6 {[%emt 0:00:10]} Rdc7 {[%emt 0:01:20]} 32. Rc6 {[%emt 0:00:22]} h5 {[%emt 0:00:38]} 33. Rxc7+ {[%emt 0:00:27]} Rxc7 {[%emt 0:00:02]} 34. Nc6 {[%emt 0:00:09]} Bc5 {[%emt 0:00:58]} 35. Rxa5 {[%emt 0:00:50]} Bxf2 {[%emt 0:00:09]} 36. c5 {[%emt 0:00:07]} g5 {[%emt 0:00:38]} 37. Kc4 {[%emt 0:01:17]} f5 {[%emt 0:00:45]} 38. Ra6 {[%emt 0:00:18]} f4 {[%emt 0:00:29]} 39. d6 {[%emt 0:00:07]} Rc8 {[%emt 0:00:27]} 40. d7 {[%emt 0:00:11]} Rxc6 {[%emt 0:00:33]} 41. d8=N+ {[%emt 0:40:16]} Kg7 {[%emt 0:40:31]} 42. Nxc6 {[%emt 0:00:07]} g4 {[%emt 0:00:20]} 43. Ne5 {[%emt 0:00:18]} Bg1 {[%emt 0:00:31]} 44. c6 {[%emt 0:00:39]} Bxh2 {[%emt 0:00:30]} 45. c7 {[%emt 0:00:05]} f3 {[%emt 0:00:06]} 46. Rg6+ {[%emt 0:00:14]} Kh7 {[%emt 0:00:10]} 47. c8=Q {[%emt 0:00:02]} Bxe5 {[%emt 0:00:16]} 48. Qg8# {[%emt 0:00:36]} 1-0

[Event "Fagernes Chess GM-Swiss 2024"]
[Site "Fagernes"]
[Date "2024.03.26"]
[Round "3.49"]
[White "Elsness, Fredrik Valstad"]
[Black "Joel Paul Ganta"]
[Result "1-0"]
[ECO "B81"]
[WhiteElo "1873"]
[BlackElo "1993"]
[Annotator "NA RC"]
[PlyCount "63"]
[EventDate "2024.03.25"]
[EventType "swiss"]
[EventCountry "NOR"]
[SourceTitle "playchess.com"]
[Source "ChessBase"]
[SourceQuality "1"]
[TimeControl "40/6000+30:2400+30"]

1. e4 {[%emt 0:09:31]} c5 {[%emt 0:00:03]} 2. Nf3 {[%emt 0:00:07]} d6 {[%emt 0:00:03]} 3. d4 {[%emt 0:00:03]} cxd4 {[%emt 0:00:02]} 4. Nxd4 {[%emt 0:00:07]} Nf6 {[%emt 0:00:02]} 5. Nc3 {[%emt 0:00:06]} a6 {[%emt 0:00:02]} 6. h3 {[%emt 0:00:11]} e6 {[%emt 0:00:03]} 7. g4 {[%emt 0:00:12]} b5 {[%emt 0:00:03]} 8. g5 {[%emt 0:02:20]} Nfd7 {[%emt 0:00:03]} 9. Bg2 {[%emt 0:02:15]} Bb7 {[%emt 0:00:05]} 10. a4 {[%emt 0:04:35]} bxa4 {[%emt 0:01:26]} 11. Rxa4 {[%emt 0:01:08]} Nc6 {[%emt 0:00:02]} 12. O-O {[%emt 0:13:30]} Be7 {[%emt 0:01:53]} 13. Be3 {[%emt 0:04:58]} Nc5 {[%emt 0:07:02]} 14. Nxc6 {[%emt 0:06:20]} Bxc6 {[%emt 0:00:03]} 15. Rc4 {[%emt 0:00:18]} Bb5 {[%emt 0:05:25]} 16. Nxb5 {[%emt 0:00:45]} axb5 {[%emt 0:00:02]} 17. Rd4 $14 {[%emt 0:03:11]} (17. Rb4 $142) 17... Qc7 {[%emt 0:04:57]} 18. Qe2 {[%emt 0:04:50]} O-O {[%emt 0:00:07]} 19. f4 {[%emt 0:02:50]} Ra2 {[%emt 0:00:09]} 20. Rb4 {[%emt 0:03:44]} Rc8 {[%emt 0:21:10]} 21. f5 {[%emt 0:06:24]} d5 {[%emt 0:04:00]} 22. exd5 {[%emt 0:03:52]} exf5 {[%emt 0:03:57]} 23. Rxf5 {[%emt 0:05:32]} Ra1+ {[%emt 0:07:19]} 24. Rf1 {[%emt 0:01:40]} Rxf1+ {[%emt 0:04:13]} 25. Qxf1 {[%emt 0:01:05]} Ne6 {[%emt 0:23:17]} 26. Rxb5 {[%emt 0:03:22]} Qe5 {[%emt 0:01:08]} 27. Qf2 {[%emt 0:06:55]} Bxg5 {[%emt 0:11:19]} 28. dxe6 {[%emt 0:07:54]} Qxb5 {[%emt 0:00:43]} 29. Qxf7+ {[%emt 0:00:19]} Kh8 {[%emt 0:00:04]} 30. Bd4 {[%emt 0:00:43]} Bh6 {[%emt 0:02:29]} 31. e7 {[%emt 0:00:14]} Qb8 {[%emt 0:02:44]} 32. Be5 {[%emt 0:00:51]} 1-0

[Event "Fagernes Chess GM-Swiss 2024"]
[Site "Fagernes"]
[Date "2024.03.26"]
[Round "3.50"]
[White "Sachi Jain"]
[Black "Avetisyan, Ani"]
[Result "0-1"]
[ECO "B10"]
[WhiteElo "1992"]
[BlackElo "1840"]
[Annotator "NA RC"]
[PlyCount "38"]
[EventDate "2024.03.25"]
[EventType "swiss"]
[EventCountry "NOR"]
[SourceTitle "playchess.com"]
[Source "ChessBase"]
[SourceQuality "1"]
[TimeControl "40/6000+30:2400+30"]

1. e4 {[%emt 0:01:23]} c6 {[%emt 0:00:09]} 2. Nf3 {[%emt 0:00:11]} d5 {[%emt 0:00:06]} 3. d3 {[%emt 0:00:04]} Bg4 {[%emt 0:00:36]} 4. h3 {[%emt 0:01:04]} Bh5 {[%emt 0:00:36]} 5. Nbd2 {[%emt 0:02:09]} e6 {[%emt 0:00:46]} 6. g4 {[%emt 0:01:57]} Bg6 {[%emt 0:06:01]} 7. h4 {[%emt 0:00:21]} dxe4 {[%emt 0:01:42]} 8. h5 {[%emt 0:06:59]} Bxh5 {[%emt 0:07:33]} 9. Ne5 {[%emt 0:00:53]} Bg6 {[%emt 0:00:57]} 10. Nxg6 {[%emt 0:00:06]} fxg6 {[%emt 0:00:04]} 11. Nxe4 {[%emt 0:01:34]} Nf6 {[%emt 0:08:32]} 12. Bg2 {[%emt 0:01:38]} Nxe4 {[%emt 0:04:36]} 13. Bxe4 {[%emt 0:00:08]} Qf6 {[%emt 0:00:05]} 14. g5 {[%emt 0:02:48]} Qf7 {[%emt 0:01:44]} 15. d4 {[%emt 0:00:10]} Nd7 $11 {[%emt 0:10:48]} 16. c3 {[%emt 0:01:44]} Bd6 {[%emt 0:03:14]} 17. Qd3 {[%emt 0:00:53]} O-O-O {[%emt 0:03:18]} 18. Rxh7 {[%emt 0:03:41]} Rxh7 {[%emt 0:03:35]} 19. Bxg6 {[%emt 0:00:03]} Rh1+ {[%emt 0:00:07]} 0-1

[Event "Fagernes Chess GM-Swiss 2024"]
[Site "Fagernes"]
[Date "2024.03.27"]
[Round "4.1"]
[White "Gorshtein, Ido"]
[Black "Jumabayev, Rinat"]
[Result "1/2-1/2"]
[ECO "D35"]
[WhiteElo "2539"]
[BlackElo "2598"]
[Annotator "TA"]
[PlyCount "28"]
[EventDate "2024.03.25"]
[EventType "swiss"]
[EventCountry "NOR"]
[SourceTitle "playchess.com"]
[Source "ChessBase"]
[SourceQuality "1"]
[TimeControl "40/6000+30:2400+30"]

{[%evp 21,28,0,35,28,31,22,15,14,18]} 1. d4 {[%emt 0:00:04]} Nf6 {[%emt 0:01:45]} 2. c4 {[%emt 0:00:08]} e6 {[%emt 0:00:02][%cal Be7e6,Be6d5,Bd5e4][%mdl 32]} 3. Nf3 {[%emt 0:00:07]} d5 {[%emt 0:00:38]} 4. Nc3 {[%emt 0:00:10]} Nbd7 {[%emt 0:00:06]} 5. cxd5 {[%emt 0:01:13]} exd5 {[%emt 0:00:04]} 6. Bg5 {[%emt 0:00:07]} c6 {[%emt 0:01:11]} 7. e3 {[%emt 0:00:09]} Be7 {[%emt 0:00:09]} 8. Bd3 {[%emt 0:00:09]} Ne4 {[%emt 0:02:19]} 9. Bxe7 {[%emt 0:08:42]} Qxe7 {[%emt 0:00:38]} 10. Bxe4 {[%emt 0:01:39]} dxe4 {[%emt 0:00:12]} 11. Nd2 {[%emt 0:00:03]} Nf6 {[%emt 0:01:47]} 12. O-O {[%emt 0:07:54]} O-O {[%emt 0:01:17] [#]} 13. b4 $1 {[%emt 0:08:29]} Qxb4 {[%emt 0:12:56]} 14. Ndxe4 {[%emt 0:00:23]} Nxe4 {[%emt 0:09:58] White took control after the opening.   Weighted Error Value: White=0.03 (flawless) /Black=0.12 (very precise) .  OK:         	White=1     	Black=1} 1/2-1/2

[Event "Fagernes Chess GM-Swiss 2024"]
[Site "Fagernes"]
[Date "2024.03.27"]
[Round "4.2"]
[White "Elmi, Saad Abobaker"]
[Black "Ganguly, Surya Shekhar"]
[Result "0-1"]
[ECO "C50"]
[WhiteElo "2344"]
[BlackElo "2574"]
[Annotator "TA"]
[PlyCount "60"]
[EventDate "2024.03.25"]
[EventType "swiss"]
[EventCountry "NOR"]
[SourceTitle "playchess.com"]
[Source "ChessBase"]
[SourceQuality "1"]
[TimeControl "40/6000+30:2400+30"]

{[%evp 9,60,11,22,20,16,17,14,6,0,0,14,14,0,7,0,0,9,4,4,16,26,14,28,21,32,0,12,-31,-29,-21,-22,-24,-28,-44,-41,-137,-110,-178,-183,-185,-169,-209,-201,-375,-155,-141,-143,-141,-136,-139,-140,-140,-133]} 1. e4 {[%emt 0:07:09]} e5 {[%emt 0:00:09]} 2. Nf3 {[%emt 0:00:24]} Nc6 {[%emt 0:00:06]} 3. Bc4 {[%emt 0:00:10]} Nf6 {[%emt 0:00:13]} 4. d3 {[%emt 0:00:17]} Bc5 {[%emt 0:00:06]} 5. a4 {[%emt 0:01:06]} d6 {[%emt 0:00:11]} 6. a5 {[%emt 0:01:35]} a6 {[%emt 0:00:08]} 7. c3 {[%emt 0:01:45]} h6 {[%emt 0:00:48]} 8. Be3 {[%emt 0:05:33] The position is equal.} Bxe3 {[%emt 0:02:29]} 9. fxe3 {[%emt 0:00:14]} Ne7 {[%emt 0:00:25]} 10. O-O {[%emt 0:01:35]} Ng6 {[%emt 0:00:34]} 11. Nbd2 {[%emt 0:02:38]} O-O {[%emt 0:01:29]} 12. Qe1 {[%emt 0:02:09]} c6 {[%emt 0:01:03]} 13. Nh4 {[%emt 0:03:44]} Nxh4 {[%emt 0:15:35]} 14. Qxh4 {[%emt 0:00:55]} b5 {[%emt 0:01:39]} 15. axb6 {[%emt 0:02:01]} d5 $1 {[%emt 0:02:03]} 16. Bb3 {[%emt 0:03:23]} Rb8 {[%emt 0:03:19]} 17. Rf3 {[%emt 0:20:40] Raf1 is the strong threat.} Be6 {[%emt 0:05:26]} 18. Raf1 {[%emt 0:11:17][%cal Rf3f6]} Nd7 {[%emt 0:02:53]} 19. Qxd8 {[%emt 0:00:37]} Rfxd8 {[%emt 0:02:48]} 20. exd5 {[%emt 0:03:23]} cxd5 {[%emt 0:00:07]} 21. Ra1 {[%emt 0:06:47]} Rxb6 {[%emt 0:01:03][%cal Oe5e4]} 22. Ra5 {[%emt 0:06:58]} (22. d4 $1 $15) 22... e4 $1 $17 {[%emt 0:01:53]} 23. Rf1 {[%emt 0:10:20]} (23. Rf4 $17) 23... exd3 $19 {[%emt 0:00:27]} 24. Bxd5 {[%emt 0:00:20]} Rxb2 {[%emt 0:01:13]} 25. Bxe6 {[%emt 0:01:05]} fxe6 {[%emt 0:00:11]} (25... Rxd2 $2 26. Rxf7 (26. Bxf7+ Kf8 $18) 26... Re8 27. Rf2+ (27. Rxd7+ Rxe6 28. h4 Rg6 $19) (27. Bxd7 Kxf7 28. Bxe8+ Kxe8 $11) (27. Rxa6 $2 Rxe6 28. Rxe6 Kxf7 $19) (27. Bd5 Nb6 $18) 27... Rxe6 28. Rxd2 $18) 26. Ne4 {[%emt 0:00:38] [#]} (26. Rd1 {is the only way for White.}) 26... Nf6 {[%emt 0:09:23]} 27. Nxf6+ $17 {[%emt 0:01:01] Black is clearly better.} gxf6 {[%emt 0:00:05]} 28. Rxa6 {[%emt 0:00:49]} Re2 {[%emt 0:00:17]} 29. Raa1 {[%emt 0:02:43]} (29. Rxf6 $2 d2 (29... Rxe3 30. Ra1 $11) 30. Ra1 d1=Q+ $19 (30... d1=B $2 31. Rg6+ Kf8 32. Kf1 $19) (30... d1=R+ $2 31. Rf1 $19)) 29... d2 {[%emt 0:04:44] aiming for ...Rd3. Black is much more active.} ({Don't take} 29... Rxe3 30. Rxf6 Re2 (30... d2 31. Kf2 $11) 31. Rg6+ Kf7 32. Rxh6 $11) 30. Rad1 {[%emt 0:00:49]} Kf7 {[%emt 0:00:23] Weighted Error Value: White=0.27 (precise) /Black=0.14 (very precise) .  Missed win:     	---       	Black=1      Mistake:       	White=3     	---        Inaccurate:     	White=2     	---        OK:         	White=5     	Black=7      Best:        	White=3     	Black=3      Strong:       	---       	Black=2} ({Much weaker is} 30... Rxe3 $6 31. Rxf6 Rxc3 32. Kf2 $11) 0-1

[Event "Fagernes Chess GM-Swiss 2024"]
[Site "Fagernes"]
[Date "2024.03.27"]
[Round "4.3"]
[White "Urkedal, Frode Olav Olsen"]
[Black "Trost, Edvin"]
[Result "1-0"]
[ECO "C80"]
[WhiteElo "2536"]
[BlackElo "2432"]
[Annotator "TA"]
[PlyCount "65"]
[EventDate "2024.03.25"]
[EventType "swiss"]
[EventCountry "NOR"]
[SourceTitle "playchess.com"]
[Source "ChessBase"]
[SourceQuality "1"]
[TimeControl "40/6000+30:2400+30"]

{[%evp 21,65,31,41,0,0,0,3,0,-4,-18,14,21,99,92,87,0,27,22,31,0,0,0,40,45,30,-45,198,199,298,264,359,257,272,250,435,403,2000,1932,4986,1073,29994,29995,29995,29996,29996,29997]} 1. e4 {[%emt 0:05:51]} e5 {[%emt 0:00:35]} 2. Nf3 {[%emt 0:00:06]} Nc6 {[%emt 0:00:10]} 3. Bb5 {[%emt 0:00:08][%cal Bf1b5,Bb5a4,Ba4b3][%mdl 32]} a6 {[%emt 0:00:05]} 4. Ba4 {[%emt 0:00:05]} Nf6 {[%emt 0:00:05]} 5. O-O {[%emt 0:00:06]} Nxe4 {[%emt 0:00:21]} 6. d4 {[%emt 0:00:25]} b5 {[%emt 0:00:12]} 7. Bb3 {[%emt 0:00:07]} d5 {[%emt 0:00:12]} 8. dxe5 {[%emt 0:00:43]} Be6 {[%emt 0:00:08]} 9. Nbd2 {[%emt 0:06:55]} Nc5 {[%emt 0:00:34]} 10. c3 {[%emt 0:00:14]} d4 {[%emt 0:00:12]} 11. Bxe6 {[%emt 0:08:57]} Nxe6 {[%emt 0:00:16]} 12. Nxd4 {[%emt 0:01:31]} Ncxd4 {[%emt 0:00:23]} 13. cxd4 {[%emt 0:00:05]} Qxd4 {[%emt 0:03:34][%cal Oa8d8]} 14. Qc2 {[%emt 0:14:37] Die Stellung ist ausgeglichen.} Qc5 {[%emt 0:11:25]} 15. Qf5 {[%emt 0:04:37]} g6 {[%emt 0:02:29]} 16. Qf3 {[%emt 0:11:03]} Rd8 {[%emt 0:01:35]} (16... O-O-O $1 $11) 17. Ne4 $16 {[%emt 0:13:07]} Qxe5 {[%emt 0:00:13] [#]} 18. Ng5 {[%emt 0:04:16]} Qf5 {[%emt 0:28:52] Weiss muss nun ...Qxf3 beachten.} (18... Nxg5 $6 19. Qc6+ Rd7 20. Bxg5 Qxg5 21. Rfe1+ Be7 22. Rad1 $16 (22. Qxa6 $2 O-O $19)) 19. Qc6+ {[%emt 0:05:05]} Rd7 {[%emt 0:00:09]} 20. Qa8+ {[%emt 0:05:25]} Rd8 {[%emt 0:02:14]} 21. Qc6+ {[%emt 0:11:28]} Rd7 {[%emt 0:00:06]} 22. Nxe6 {[%emt 0:08:01]} fxe6 {[%emt 0:01:10]} (22... Qxe6 $2 23. Qc3 f6 24. Re1 $18) 23. Re1 {[%emt 0:07:19]} (23. Rd1 $11 Bd6 24. Be3 (24. Qxa6 Bxh2+ 25. Kxh2 Rxd1 $15)) 23... Bd6 $2 {[%emt 0:02:49] Verliert die Partie.} (23... Qd5 $1 $15 {behält die Oberhand.} 24. Qc2 (24. Qxe6+ Qxe6 25. Rxe6+ Kf7 $15) (24. Qxa6 Bb4 $17) (24. Rxe6+ Kf7 $17) 24... Bb4) 24. Bh6 $1 $18 {[%emt 0:01:09][%cal Oh2h4][%mdl 1024] h4! wäre nun fies. Weiss hat starke Kompensation.} (24. Qxa6 O-O 25. Be3 Qd5 $11) 24... Rg8 {[%emt 0:04:25] [#]} (24... Ke7 $142) 25. h4 $1 {[%emt 0:00:04][%cal Oe1e3]} (25. Qxa6 g5 26. Qc8+ Rd8 27. Rxe6+ (27. Qxe6+ Qxe6 28. Rxe6+ Kf7 $11) 27... Kf7 $11) 25... b4 {[%emt 0:03:48]} 26. Rad1 {[%emt 0:00:09][%cal Oh6g5] Und Bg5! würde nun gewinnen.} (26. Qxa6 Bc5 27. Be3 (27. Rxe6+ Kf7 $16) (27. Qxe6+ Qxe6 28. Rxe6+ Kf7 $18) 27... Rf8 $16) 26... Qb5 {[%emt 0:00:47]} 27. Qe4 {[%emt 0:00:47]} (27. Rxe6+ Kf7 28. Qf3+ (28. Qe4 Qf5 $11) 28... Qf5 $14 (28... Kxe6 29. Qb3+ Kf6 30. Qxg8 $16)) 27... Qf5 {[%emt 0:00:20] [#]} (27... Re7 {ist eine bessere Verteidigung.} 28. Bg5 Rgg7) 28. Qc4 $1 {[%emt 0:00:56]} (28. Qxe6+ Qxe6 29. Rxe6+ Kd8 $16) 28... Ke7 {[%emt 0:05:07]} (28... Rf8 $142 29. Rxe6+ (29. Qxe6+ Re7 $15) (29. Bxf8 Kxf8 30. Rxe6 Bh2+ 31. Kxh2 Rxd1 $18) 29... Be7) 29. Bg5+ {[%emt 0:00:47]} (29. Qxa6 Rb8 $18) 29... Kf8 {[%emt 0:00:11]} 30. Rxe6 {[%emt 0:00:35]} (30. Rxd6 $142 cxd6 31. Qc8+ (31. Qxa6 Kg7 $17) (31. Rxe6 Rc7 $18) 31... Kg7 32. Qxd7+ Qf7 33. Bh6+ (33. Qxe6 Qxe6 34. Rxe6 Ra8 $18) (33. Qxd6 h6 $18) 33... Kf6 34. Qxd6 Qe8 35. Bg5+ (35. Qxb4 g5 $18) 35... Kg7 36. Rxe6 (36. Qxb4 Rf8 $18) (36. Qe5+ Kf8 37. Rd1 Rg7 38. Qf6+ Kg8 39. Rd8 h6 40. Bxh6 Rf7 41. Rxe8+ Kh7 42. Qh8#)) 30... Qb5 {[%emt 0:01:20] [#]} 31. Re8+ $3 {[%emt 0:00:11][%mdl 512] Weiß setzt Matt.} Kxe8 {[%emt 0:00:27]} 32. Qxg8+ {[%emt 0:00:06]} Bf8 {[%emt 0:00:02]} 33. Re1+ {[%emt 0:00:08] Gewichteter Fehlerwert: Weiß=0.22 (präzise) /Schwarz=0.98.  Verlustzug:     	---       	Schwarz=1     Fehler:       	Weiß=2     	Schwarz=4     Ungenau:       	---       	Schwarz=4     OK:         	Weiß=5     	Schwarz=4     Bester:       	Weiß=2     	Schwarz=2     Stark:        	Weiß=3     	---} 1-0